bitfinex/quotes_BTCUSD_20240730
["timestamp","ask_amount","ask_price","bid_price","bid_amount"]
[1722365734147,1.2798,65833.0,65832.0,0.18122109]
[1722365734576,1.2798,65833.0,65832.0,0.17454604]
[1722365734787,1.2798,65833.0,65832.0,0.18322109]
[1722365735442,1.2798,65833.0,65832.0,0.33512209]
[1722365735650,1.2798,65833.0,65832.0,0.94272809]
[1722365736685,0.0629,65842.0,65839.0,0.1]
[1722365736885,0.08164865,65840.0,65839.0,0.28877417]
[1722365737260,0.07534716,65840.0,65839.0,0.75008313]
[1722365737479,0.00083,65844.0,65843.0,0.151876]
[1722365737689,0.00083,65844.0,65843.0,0.63490138]
[1722365737897,0.00083,65844.0,65843.0,0.17927338]
[1722365739692,0.00083,65844.0,65843.0,0.63490138]
[1722365739910,0.00083,65844.0,65843.0,0.93865338]
[1722365740327,0.00083,65844.0,65843.0,0.94265338]
[1722365740531,0.00083,65844.0,65843.0,1.55029814]
[1722365740742,0.00083,65844.0,65843.0,1.62629814]
[1722365740990,0.00083,65844.0,65843.0,1.62729814]
[1722365741202,0.00083,65844.0,65843.0,1.62629814]
[1722365741372,0.00083,65844.0,65843.0,1.64829814]
[1722365741586,0.00183,65844.0,65843.0,1.63829814]
[1722365741781,0.00183,65844.0,65843.0,1.62629814]
[1722365742538,0.00183,65844.0,65843.0,1.62628636]
[1722365743197,0.00283,65844.0,65843.0,1.64028636]
[1722365744287,0.00283,65844.0,65843.0,1.64962385]
[1722365745078,0.00283,65844.0,65843.0,1.66252801]
[1722365745283,0.00283,65844.0,65843.0,1.57492385]
[1722365745891,0.00283,65844.0,65843.0,1.44874287]
[1722365746093,0.00283,65844.0,65843.0,1.49192582]
[1722365746309,0.00283,65844.0,65843.0,0.75208433]
[1722365746722,0.00283,65844.0,65843.0,1.05583633]
[1722365747151,0.00283,65844.0,65843.0,1.35958833]
[1722365747358,0.00283,65844.0,65843.0,0.75208433]
[1722365747863,0.00283,65844.0,65843.0,0.77508433]
[1722365748234,0.00283,65844.0,65843.0,1.07883633]
[1722365749240,0.00283,65844.0,65843.0,0.31946774]
[1722365749415,0.06463,65844.0,65843.0,0.29646774]
[1722365749597,0.06463,65844.0,65843.0,0.17027338]
[1722365749803,0.06463,65844.0,65843.0,0.32214938]
[1722365750036,0.00283,65844.0,65843.0,0.75209771]
[1722365750235,0.00283,65844.0,65843.0,1.35960171]
[1722365750444,0.00083,65844.0,65843.0,1.41070171]
[1722365750680,0.00083,65844.0,65843.0,1.41670171]
[1722365750876,0.00183,65844.0,65843.0,1.51670171]
[1722365751085,0.00083,65844.0,65843.0,1.53370171]
[1722365751501,0.00183,65844.0,65843.0,1.54770171]
[1722365751942,0.00083,65844.0,65843.0,1.53370171]
[1722365752120,0.00183,65844.0,65843.0,1.54770171]
[1722365752746,0.00183,65844.0,65843.0,1.54768625]
[1722365753912,0.00183,65844.0,65843.0,1.17883425]
[1722365754901,0.06623,65844.0,65843.0,0.29645425]
[1722365755118,0.06623,65844.0,65843.0,0.17027338]
[1722365756321,0.14157716,65844.0,65843.0,0.17027338]
[1722365756639,0.14157716,65844.0,65843.0,0.19327338]
[1722365756794,0.14057716,65844.0,65843.0,0.17927338]
[1722365756998,0.14157716,65844.0,65843.0,0.19027338]
[1722365757880,0.14157716,65844.0,65843.0,0.03964034]
[1722365760084,0.00183,65844.0,65843.0,0.64590138]
[1722365760498,0.07717716,65844.0,65843.0,0.19027338]
[1722365761350,0.07717716,65844.0,65843.0,0.34214938]
[1722365761561,0.07717716,65844.0,65843.0,0.19027338]
[1722365761766,0.36685116,65844.0,65843.0,0.01664034]
[1722365761971,0.37303653,65844.0,65843.0,0.011]
[1722365762172,0.67678453,65844.0,65843.0,0.011]
[1722365762986,1.28428053,65844.0,65843.0,0.011]
[1722365763393,1.59802853,65844.0,65843.0,0.011]
[1722365763598,1.30817148,65844.0,65843.0,0.011]
[1722365764021,0.151899,65833.0,65832.0,0.100913]
[1722365764242,0.22857358,65833.0,65832.0,0.26668717]
[1722365764446,0.37743153,65833.0,65832.0,0.27236222]
[1722365764650,0.22553253,65833.0,65832.0,0.27236222]
[1722365764858,0.22553598,65833.0,65832.0,0.27236222]
[1722365765058,0.22553598,65833.0,65832.0,0.29536222]
[1722365766779,0.22553598,65833.0,65832.0,0.30536222]
[1722365766780,0.22653598,65833.0,65832.0,0.30536222]
[1722365767184,0.00718882,65833.0,65832.0,0.30536222]
[1722365767386,0.001,65833.0,65832.0,0.76106622]
[1722365767847,1.3402,65837.0,65833.0,0.151899]
[1722365768045,1.3402,65837.0,65834.0,0.17363304]
[1722365768200,1.3402,65837.0,65834.0,0.17930178]
[1722365768597,1.3402,65837.0,65836.0,0.151892]
[1722365768847,1.3402,65837.0,65836.0,0.17363304]
[1722365769256,1.3402,65837.0,65836.0,0.17929547]
[1722365770074,1.34645639,65837.0,65836.0,0.17929547]
[1722365771098,1.3402,65837.0,65836.0,0.17929547]
[1722365771327,1.34648736,65837.0,65836.0,0.18229547]
[1722365771730,1.3402,65837.0,65836.0,0.18229547]
[1722365771991,1.34648741,65837.0,65836.0,0.18229547]
[1722365772195,1.3402,65837.0,65836.0,0.17929547]
[1722365772353,0.0604,65837.0,65836.0,0.17929547]
[1722365772561,0.0604,65837.0,65836.0,0.18229547]
[1722365772562,0.06673624,65837.0,65836.0,0.18229547]
[1722365772928,2.2569334,65837.0,65836.0,0.00866243]
[1722365773196,2.5607134,65837.0,65836.0,0.00866243]
[1722365773431,2.5607134,65837.0,65836.0,0.003]
[1722365774417,0.455698,65833.0,65832.0,0.000913]
[1722365774651,0.455698,65833.0,65832.0,0.01605413]
[1722365774930,0.46207656,65833.0,65832.0,0.01605413]
[1722365775425,0.60447656,65833.0,65832.0,0.01605413]
[1722365775607,0.90827556,65833.0,65832.0,0.01605413]
[1722365775849,0.91027556,65833.0,65832.0,0.01605413]
[1722365776492,1.21407456,65833.0,65832.0,0.01605413]
[1722365777742,1.205696,65833.0,65832.0,0.01605413]
[1722365777961,1.21210237,65833.0,65832.0,0.01605413]
[1722365778167,1.21510237,65833.0,65832.0,0.01605413]
[1722365778382,2.79870137,65833.0,65832.0,0.01605413]
[1722365778595,2.82273311,65833.0,65832.0,0.01605413]
[1722365779477,2.51893411,65833.0,65832.0,0.01605413]
[1722365779651,2.51893411,65833.0,65832.0,0.000913]
[1722365780942,1.91133611,65833.0,65832.0,0.000913]
[1722365781375,1.58350537,65833.0,65832.0,0.000913]
[1722365781599,1.88730437,65833.0,65832.0,0.000913]
[1722365782348,1.58350537,65833.0,65832.0,0.000913]
[1722365782920,1.88730437,65833.0,65832.0,0.000913]
[1722365784219,1.880898,65833.0,65832.0,0.000913]
[1722365784368,1.88717329,65833.0,65832.0,0.000913]
[1722365785403,2.19097229,65833.0,65832.0,0.000913]
[1722365786242,2.21501625,65833.0,65832.0,0.000913]
[1722365786414,2.19097229,65833.0,65832.0,0.000913]
[1722365787469,2.184697,65833.0,65832.0,0.000913]
[1722365787606,2.19103277,65833.0,65832.0,0.000913]
[1722365787811,1.58343477,65833.0,65832.0,0.000913]
[1722365788019,1.74483377,65833.0,65832.0,0.000913]
[1722365788251,2.07269952,65833.0,65832.0,0.000913]
[1722365788459,2.21009952,65833.0,65832.0,0.000913]
[1722365788861,2.20709952,65833.0,65832.0,0.000913]
[1722365789436,2.81469752,65833.0,65832.0,0.000913]
[1722365789867,2.92469752,65833.0,65832.0,0.000913]
[1722365790042,2.92415072,65833.0,65832.0,0.000913]
[1722365790241,2.92515072,65833.0,65832.0,0.000913]
[1722365790457,2.93415072,65833.0,65832.0,0.000913]
[1722365790640,2.9037482,65833.0,65832.0,0.000913]
[1722365791010,2.93708902,65833.0,65832.0,0.000913]
[1722365791384,2.95008902,65833.0,65832.0,0.001913]
[1722365791756,2.94008902,65833.0,65832.0,0.001913]
[1722365792874,2.95008902,65833.0,65832.0,0.001913]
[1722365793077,2.94008902,65833.0,65832.0,0.001913]
[1722365793966,2.90974725,65833.0,65832.0,0.001913]
[1722365794168,2.94025197,65833.0,65832.0,0.001913]
[1722365794594,2.95025197,65833.0,65832.0,0.001913]
[1722365794767,3.42468401,65833.0,65832.0,0.001913]
[1722365794981,3.58478401,65833.0,65832.0,0.001913]
[1722365795180,3.58478401,65833.0,65816.0,0.000913]
[1722365795181,1.205552,65817.0,65816.0,0.000913]
[1722365795401,2.81972872,65817.0,65816.0,0.000913]
[1722365795796,2.91972872,65817.0,65816.0,0.000913]
[1722365797123,2.92372872,65817.0,65816.0,0.000913]
[1722365797309,2.889224,65817.0,65816.0,0.000913]
[1722365797700,2.93398352,65817.0,65816.0,0.000913]
[1722365797901,2.94052263,65817.0,65816.0,0.000913]
[1722365798111,2.96474389,65817.0,65816.0,0.000913]
[1722365798326,3.14959824,65817.0,65816.0,0.000913]
[1722365798544,3.15613733,65817.0,65816.0,0.000913]
[1722365798753,3.14613733,65817.0,65816.0,0.000913]
[1722365798964,3.15613733,65817.0,65816.0,0.000913]
[1722365799742,3.14213733,65817.0,65816.0,0.000913]
[1722365800194,3.14613733,65817.0,65816.0,0.000913]
[1722365800659,3.13213733,65817.0,65816.0,0.000913]
[1722365800866,3.11537693,65817.0,65816.0,0.000913]
[1722365801070,3.14595162,65817.0,65816.0,0.000913]
[1722365801278,3.09443173,65817.0,65816.0,0.000913]
[1722365801755,3.07978678,65817.0,65816.0,0.000913]
[1722365802354,3.05565933,65817.0,65816.0,0.000913]
[1722365802660,3.07985261,65817.0,65816.0,0.000913]
[1722365802908,2.62534757,65817.0,65816.0,0.000913]
[1722365803108,1.99805524,65817.0,65816.0,0.000913]
[1722365803327,1.84205524,65817.0,65816.0,0.000913]
[1722365803540,2.04592724,65817.0,65816.0,0.000913]
[1722365803747,1.75605524,65817.0,65816.0,0.000913]
[1722365803963,1.28624724,65817.0,65816.0,0.000913]
[1722365804390,1.29524724,65817.0,65816.0,0.000913]
[1722365805195,0.01544724,65817.0,65816.0,0.000913]
[1722365805399,0.01848829,65817.0,65816.0,0.000913]
[1722365805611,0.01544724,65817.0,65816.0,0.000913]
[1722365806228,0.01544724,65817.0,65816.0,0.00735426]
[1722365806654,0.16738324,65817.0,65816.0,0.000913]
[1722365806858,0.47429629,65817.0,65816.0,0.000913]
[1722365807069,0.17042429,65817.0,65816.0,0.000913]
[1722365808047,0.01848829,65817.0,65816.0,0.000913]
[1722365810950,0.01204105,65817.0,65816.0,0.000913]
[1722365811161,0.16397705,65817.0,65816.0,0.000913]
[1722365811344,0.47446597,65817.0,65816.0,0.000913]
[1722365811545,0.17059397,65817.0,65816.0,0.000913]
[1722365811883,0.01865797,65817.0,65816.0,0.000913]
[1722365813122,0.17059397,65817.0,65816.0,0.000913]
[1722365813331,0.01865797,65817.0,65816.0,0.000913]
[1722365814402,0.01204105,65817.0,65816.0,0.000913]
[1722365814557,0.01868449,65817.0,65816.0,0.000913]
[1722365815365,0.17062049,65817.0,65816.0,0.000913]
[1722365815585,0.47449249,65817.0,65816.0,0.000913]
[1722365816268,0.17062049,65817.0,65816.0,0.000913]
[1722365817088,0.01868449,65817.0,65816.0,0.000913]
[1722365817511,0.01564344,65817.0,65816.0,0.00735426]
[1722365817728,0.01564344,65817.0,65816.0,0.000913]
[1722365817933,0.01564344,65817.0,65816.0,0.00735426]
[1722365818973,0.00664344,65817.0,65816.0,0.00735426]
[1722365819192,0.00664344,65817.0,65816.0,1.4907563]
[1722365819358,1.2798,65823.0,65822.0,0.859622]
[1722365819509,1.2798,65823.0,65822.0,1.03325504]
[1722365819715,1.2798,65823.0,65822.0,1.16591363]
[1722365819913,1.2798,65823.0,65822.0,0.40629163]
[1722365820119,1.2798,65823.0,65822.0,0.43353119]
[1722365820346,1.28451759,65823.0,65822.0,0.43197699]
[1722365820639,1.28851759,65823.0,65822.0,0.10641995]
[1722365820842,1.28851759,65823.0,65822.0,0.1]
[1722365821042,1.739567,65823.0,65822.0,0.1]
[1722365821241,1.739567,65823.0,65816.0,0.01605413]
[1722365821242,0.151934,65818.0,65817.0,0.0015542]
[1722365821699,0.15665139,65818.0,65817.0,0.0015542]
[1722365822010,0.00471739,65818.0,65817.0,0.0015542]
[1722365822527,0.00471739,65818.0,65817.0,0.00643771]
[1722365823033,0.00471739,65818.0,65816.0,0.01605413]
[1722365823214,0.00471739,65817.0,65816.0,0.01605413]
[1722365823417,0.00304105,65820.0,65816.0,0.01760833]
[1722365823620,0.00304105,65820.0,65817.0,0.00643771]
[1722365823834,0.00304105,65820.0,65818.0,0.0015542]
[1722365824037,0.00471616,65819.0,65818.0,0.0015542]
[1722365824460,0.00471616,65819.0,65817.0,0.0827542]
[1722365824620,1.2798,65821.0,65818.0,0.065]
[1722365824820,0.00471744,65820.0,65819.0,0.0015542]
[1722365825022,0.00471744,65820.0,65819.0,0.15218724]
[1722365825219,1.2798,65821.0,65819.0,0.17518724]
[1722365825442,0.00471808,65820.0,65819.0,0.1764852]
[1722365825837,0.002,65820.0,65819.0,0.4803482]
[1722365826051,1.2798,65821.0,65820.0,0.455788]
[1722365826275,1.28451793,65821.0,65820.0,0.174929]
[1722365826495,1.28451793,65821.0,65820.0,0.17518724]
[1722365826706,1.2798,65821.0,65820.0,0.62942104]
[1722365827139,1.2798,65821.0,65820.0,0.32556204]
[1722365827345,1.2798,65821.0,65820.0,0.33354329]
[1722365827566,1.2798,65821.0,65820.0,0.93970709]
[1722365827786,1.2798,65821.0,65820.0,0.63584809]
[1722365828451,1.2798,65821.0,65820.0,0.18006009]
[1722365828659,2.04415277,65821.0,65820.0,0.00642705]
[1722365828867,2.04415277,65821.0,65816.0,0.01760833]
[1722365828868,0.455808,65817.0,65816.0,0.01605413]
[1722365829078,0.53587293,65817.0,65816.0,0.01605413]
[1722365829295,0.83974493,65817.0,65816.0,0.01605413]
[1722365829505,2.58997533,65817.0,65816.0,0.000913]
[1722365830167,2.56289916,65817.0,65816.0,0.000913]
[1722365830381,2.59000981,65817.0,65816.0,0.000913]
[1722365830594,2.59500981,65817.0,65816.0,0.000913]
[1722365831232,2.56789916,65817.0,65816.0,0.000913]
[1722365831466,2.59029529,65817.0,65816.0,0.000913]
[1722365831834,2.29113812,65817.0,65816.0,0.000913]
[1722365832617,2.28613812,65817.0,65816.0,0.000913]
[1722365832837,2.30013812,65817.0,65816.0,0.000913]
[1722365833070,2.28613812,65817.0,65816.0,0.000913]
[1722365833540,2.27302716,65817.0,65816.0,0.000913]
[1722365833768,2.26374273,65817.0,65816.0,0.000913]
[1722365833989,2.28615,65817.0,65816.0,0.000913]
[1722365834210,2.29715,65817.0,65816.0,0.000913]
[1722365834915,2.601022,65817.0,65816.0,0.000913]
[1722365835171,2.29715,65817.0,65816.0,0.000913]
[1722365835720,2.611022,65817.0,65816.0,0.000913]
[1722365836004,0.37916316,65830.0,65816.0,0.000913]
[1722365836005,0.00083,65832.0,65831.0,0.75952]
[1722365836242,0.00083,65844.0,65843.0,0.1]
[1722365836474,0.152704,65844.0,65843.0,0.01514113]
[1722365836723,0.1427,65843.0,65826.0,0.0015542]
[1722365836972,0.07534716,65831.0,65827.0,0.25063304]
[1722365837255,0.07534716,65831.0,65828.0,0.023]
[1722365837524,0.07534716,65831.0,65828.0,0.18052148]
[1722365837736,0.00304105,65830.0,65828.0,0.00688844]
[1722365838296,0.00304105,65830.0,65821.0,0.0015542]
[1722365838514,0.22727116,65822.0,65821.0,0.0015542]
[1722365838700,0.22727116,65822.0,65816.0,0.000913]
[1722365838701,0.07534716,65822.0,65816.0,0.000913]
[1722365839022,0.00304105,65821.0,65816.0,0.15154604]
[1722365839269,0.00304105,65821.0,65817.0,0.023]
[1722365839640,0.151935,65818.0,65816.0,0.000913]
[1722365839843,0.00304105,65817.0,65816.0,0.000913]
[1722365840048,0.15497705,65817.0,65816.0,0.000913]
[1722365840249,0.76272105,65817.0,65816.0,0.000913]
[1722365840407,0.45884905,65817.0,65816.0,0.014913]
[1722365840605,0.451808,65817.0,65816.0,0.000913]
[1722365841013,0.452808,65817.0,65816.0,0.014913]
[1722365841213,0.75668,65817.0,65816.0,0.014913]
[1722365841414,1.060552,65817.0,65816.0,0.014913]
[1722365842352,1.059552,65817.0,65816.0,0.000913]
[1722365842722,1.060552,65817.0,65816.0,0.007913]
[1722365842943,1.060552,65817.0,65816.0,0.000913]
[1722365843267,1.063552,65817.0,65816.0,0.000913]
[1722365844390,1.610124,65817.0,65816.0,0.000913]
[1722365844576,1.76075704,65817.0,65816.0,0.000913]
[1722365844975,1.45688504,65817.0,65816.0,0.000913]
[1722365845218,1.306252,65817.0,65816.0,0.000913]
[1722365845755,1.302252,65817.0,65816.0,0.000913]
[1722365845934,1.302252,65817.0,65816.0,0.001913]
[1722365845935,1.412252,65817.0,65816.0,0.001913]
[1722365846907,2.70155973,65817.0,65816.0,0.001913]
[1722365847301,2.68656696,65817.0,65816.0,0.001913]
[1722365849753,3.151072,65817.0,65816.0,0.001913]
[1722365852171,3.141072,65817.0,65816.0,0.001913]
[1722365853182,3.151072,65817.0,65816.0,0.001913]
[1722365853509,3.4843683,65817.0,65816.0,0.001913]
[1722365853843,3.64466846,65817.0,65816.0,0.001913]
[1722365853959,3.94854046,65817.0,65816.0,0.001913]
[1722365855020,3.93854046,65817.0,65816.0,0.000913]
[1722365855215,3.95254046,65817.0,65816.0,0.000913]
[1722365855488,4.08275954,65817.0,65816.0,0.000913]
[1722365855710,3.95254046,65817.0,65816.0,0.000913]
[1722365857328,2.67274115,65817.0,65816.0,0.000913]
[1722365857909,2.663316,65817.0,65816.0,0.000913]
[1722365858119,2.67274083,65817.0,65816.0,0.000913]
[1722365859874,1.509097,65799.0,65798.0,0.00259569]
[1722365859985,1.58444416,65799.0,65798.0,0.00259569]
[1722365860190,1.60057958,65799.0,65798.0,0.00259569]
[1722365860385,1.75121262,65799.0,65798.0,0.00259569]
[1722365861517,1.75125366,65799.0,65798.0,0.00259569]
[1722365861903,1.75325366,65799.0,65798.0,0.00259569]
[1722365862131,1.7370772,65799.0,65798.0,0.00259569]
[1722365862728,1.7350772,65799.0,65798.0,0.00259569]
[1722365863153,1.7430772,65799.0,65798.0,0.00259569]
[1722365866434,1.08122589,65799.0,65798.0,0.00259569]
[1722365869921,1.09723447,65799.0,65798.0,0.00259569]
[1722365870329,0.008,65799.0,65798.0,0.00259569]
[1722365870529,0.008,65799.0,65798.0,0.08982965]
[1722365870736,0.008,65799.0,65798.0,0.21612135]
[1722365870939,0.46697305,65799.0,65798.0,0.08982965]
[1722365871148,0.77092805,65799.0,65798.0,0.00872965]
[1722365871356,0.76292805,65799.0,65798.0,0.00872965]
[1722365871562,0.76292805,65799.0,65798.0,0.00259569]
[1722365871763,0.76292805,65799.0,65798.0,0.00872965]
[1722365871764,0.76392805,65799.0,65798.0,0.00872965]
[1722365874476,0.76292805,65799.0,65798.0,0.00872965]
[1722365874878,0.76392805,65799.0,65798.0,0.00972965]
[1722365875075,0.001,65799.0,65798.0,0.00972965]
[1722365876368,0.001,65799.0,65798.0,0.01128385]
[1722365876910,0.001,65799.0,65798.0,0.00972965]
[1722365877107,0.456932,65799.0,65798.0,0.00972965]
[1722365877348,0.152977,65799.0,65798.0,0.00972965]
[1722365877548,0.456932,65799.0,65798.0,0.00972965]
[1722365878693,0.760887,65799.0,65798.0,0.00972965]
[1722365879445,0.456932,65799.0,65798.0,0.00972965]
[1722365879652,0.001,65799.0,65798.0,0.00972965]
[1722365880695,0.10083,65817.0,65810.0,0.1]
[1722365880911,0.00083,65844.0,65843.0,0.251876]
[1722365881128,0.00083,65844.0,65843.0,0.49363304]
[1722365881359,0.00083,65844.0,65843.0,0.34851158]
[1722365881549,0.304578,65844.0,65843.0,0.00551158]
[1722365881750,0.7602,65844.0,65843.0,0.00551158]
[1722365881980,0.7602,65844.0,65832.0,0.1]
[1722365881981,0.00083,65844.0,65832.0,0.1]
[1722365882153,0.07534716,65835.0,65832.0,0.1]
[1722365882384,0.00304105,65834.0,65833.0,0.00554314]
[1722365882585,0.07534716,65835.0,65833.0,0.00554314]
[1722365883407,0.07634716,65835.0,65833.0,0.00554314]
[1722365883614,0.001,65835.0,65833.0,0.00554314]
[1722365883820,0.00304105,65841.0,65833.0,0.00554314]
[1722365884023,0.001,65835.0,65833.0,0.00554314]
[1722365885031,0.001,65835.0,65833.0,0.15744214]
[1722365885204,0.001,65835.0,65833.0,0.00554314]
[1722365885412,0.23027421,65839.0,65833.0,0.00554314]
[1722365885615,0.07838821,65839.0,65833.0,0.00554314]
[1722365885783,0.001,65835.0,65833.0,0.01254314]
[1722365885976,0.001,65835.0,65833.0,0.00554314]
[1722365886186,0.07838821,65839.0,65833.0,0.00554314]
[1722365886376,0.303794,65834.0,65833.0,0.01254314]
[1722365886576,0.455691,65834.0,65833.0,0.01254314]
[1722365886800,0.151907,65830.0,65825.0,0.1]
[1722365887024,0.151907,65830.0,65826.0,0.17363304]
[1722365887025,1.35514716,65829.0,65826.0,0.17363304]
[1722365887223,1.35514716,65829.0,65826.0,0.17919827]
[1722365887425,1.2798,65829.0,65826.0,0.17919827]
[1722365887641,1.2798,65829.0,65827.0,0.303826]
[1722365887832,1.2798,65829.0,65828.0,0.62936604]
[1722365888031,1.2798,65829.0,65828.0,0.91574696]
[1722365888229,1.2798,65829.0,65828.0,0.93874696]
[1722365888851,1.2798,65829.0,65828.0,0.63492496]
[1722365889423,1.2798,65829.0,65828.0,0.33110296]
[1722365889949,1.2808,65829.0,65828.0,0.33810296]
[1722365890521,1.2808,65829.0,65828.0,0.64192496]
[1722365890834,1.2808,65829.0,65828.0,0.33810296]
[1722365891317,0.001,65829.0,65828.0,0.64192496]
[1722365891529,0.001,65829.0,65828.0,0.33810296]
[1722365891887,0.001,65829.0,65828.0,0.39896196]
[1722365892730,0.001,65829.0,65828.0,0.70278396]
[1722365893383,0.001,65829.0,65828.0,0.39896196]
[1722365894637,0.001,65829.0,65828.0,0.70278396]
[1722365894867,0.00739347,65846.0,65845.0,0.1]
[1722365895070,0.44444115,65874.0,65861.0,0.769172]
[1722365895273,0.44444115,65874.0,65861.0,1.67629426]
[1722365895482,0.44444115,65874.0,65861.0,1.82741385]
[1722365895674,0.44444115,65891.0,65861.0,1.85486866]
[1722365895880,0.44444115,65891.0,65861.0,2.41392202]
[1722365896083,0.44444115,65891.0,65861.0,2.11225302]
[1722365896415,0.00183,65862.0,65861.0,2.11825302]
[1722365896630,0.00083,65862.0,65861.0,2.11223089]
[1722365896832,0.00083,65862.0,65861.0,2.18813089]
[1722365897114,0.00083,65862.0,65861.0,2.21122617]
[1722365897239,0.00083,65862.0,65861.0,2.1867121]
[1722365897439,0.00083,65862.0,65861.0,2.14328181]
[1722365897654,0.00083,65862.0,65861.0,2.15028181]
[1722365897655,0.00183,65862.0,65861.0,2.15028181]
[1722365897855,0.00183,65862.0,65861.0,2.05274653]
[1722365898055,0.00183,65862.0,65861.0,2.00162694]
[1722365898258,0.00183,65862.0,65861.0,1.61259763]
[1722365898482,0.00183,65862.0,65861.0,1.56920067]
[1722365899113,0.00183,65862.0,65861.0,1.56420067]
[1722365899114,0.00083,65862.0,65861.0,1.56420067]
[1722365899328,0.00083,65862.0,65861.0,1.57820067]
[1722365899502,0.00183,65862.0,65861.0,1.57820067]
[1722365899729,0.00178,65862.0,65861.0,1.57820067]
[1722365900126,0.00078,65862.0,65861.0,1.56420067]
[1722365900851,0.00178,65862.0,65861.0,1.57820067]
[1722365901271,0.00178,65862.0,65861.0,1.91186967]
[1722365901495,0.00178,65862.0,65861.0,2.04002216]
[1722365902728,0.00178,65862.0,65861.0,2.07793113]
[1722365902891,0.00178,65862.0,65861.0,2.16117341]
[1722365903101,0.00178,65862.0,65861.0,2.0937957]
[1722365903299,0.00178,65862.0,65861.0,2.12329569]
[1722365903535,0.00178,65862.0,65861.0,2.14529569]
[1722365903678,0.00178,65862.0,65861.0,2.1232643]
[1722365903878,0.00178,65862.0,65861.0,2.16575568]
[1722365904472,0.00178,65862.0,65861.0,2.01800677]
[1722365904872,0.00178,65862.0,65861.0,2.04000677]
[1722365905257,0.00178,65862.0,65861.0,2.20553295]
[1722365905454,0.00178,65862.0,65861.0,2.34367577]
[1722365905656,0.08476316,65882.0,65862.0,1.398492]
[1722365905827,0.08476316,65882.0,65862.0,2.3670328]
[1722365905967,0.08476316,65882.0,65862.0,2.44949069]
[1722365906576,0.08476316,65882.0,65862.0,2.51029869]
[1722365906774,0.08476316,65882.0,65862.0,2.65669869]
[1722365907075,0.08476316,65882.0,65862.0,2.63228288]
[1722365907314,0.08476316,65882.0,65862.0,2.67069869]
[1722365907537,0.08476316,65882.0,65862.0,2.80527818]
[1722365907773,0.08476316,65882.0,65862.0,2.67069869]
[1722365907974,0.08476316,65882.0,65862.0,2.80521441]
[1722365908529,0.08476316,65882.0,65862.0,2.67069869]
[1722365909531,0.08476316,65882.0,65871.0,1.576303]
[1722365909751,0.08476316,65882.0,65871.0,2.59210358]
[1722365909954,0.08476316,65882.0,65871.0,2.59820477]
[1722365910304,0.08476316,65882.0,65871.0,2.61820477]
[1722365910504,0.08476316,65882.0,65871.0,2.59820477]
[1722365910614,0.08476316,65882.0,65871.0,2.55978896]
[1722365910814,0.08476316,65882.0,65871.0,2.59820477]
[1722365911919,0.08476316,65882.0,65871.0,2.55978896]
[1722365912827,0.010416,65872.0,65871.0,2.59378896]
[1722365913055,0.010416,65872.0,65871.0,2.2784462]
[1722365913308,0.009416,65872.0,65871.0,2.55975563]
[1722365913520,0.08476316,65882.0,65881.0,0.858942]
[1722365913761,0.08476316,65882.0,65881.0,1.20353503]
[1722365913960,0.08476316,65882.0,65881.0,1.20960076]
[1722365914579,0.08476316,65882.0,65881.0,1.16476454]
[1722365915604,0.08476316,65882.0,65881.0,0.92844187]
[1722365915806,0.08476316,65882.0,65881.0,1.23201887]
[1722365916418,0.08476316,65882.0,65881.0,1.05164077]
[1722365916626,0.08476316,65882.0,65881.0,1.24506317]
[1722365917480,0.08476316,65882.0,65881.0,1.17776454]
[1722365918094,0.08476316,65882.0,65881.0,1.17776455]
[1722365918577,0.08476316,65882.0,65881.0,1.00184777]
[1722365918801,0.08476316,65882.0,65881.0,1.2675158]
[1722365918968,0.08476316,65882.0,65881.0,0.9639388]
[1722365919160,0.08476316,65882.0,65881.0,1.2675158]
[1722365919550,0.08476316,65882.0,65881.0,0.93499455]
[1722365919808,0.08476316,65882.0,65881.0,0.80887077]
[1722365919963,0.08476316,65882.0,65881.0,0.93499455]
[1722365920146,0.08476316,65882.0,65881.0,0.80887077]
[1722365920356,0.08476316,65882.0,65881.0,0.93499454]
[1722365920533,0.08476316,65882.0,65881.0,0.51753851]
[1722365920733,0.08476316,65882.0,65881.0,0.39585913]
[1722365920734,0.67952216,65882.0,65881.0,0.39585913]
[1722365920937,0.67952216,65882.0,65881.0,0.3059965]
[1722365921193,0.98309516,65882.0,65881.0,0.2059965]
[1722365921391,0.98309516,65882.0,65881.0,0.07987273]
[1722365921794,0.98309516,65882.0,65881.0,0.073807]
[1722365921975,0.98309516,65882.0,65881.0,0.07987273]
[1722365922614,0.98309516,65882.0,65881.0,0.06687273]
[1722365922817,0.98309516,65882.0,65881.0,0.060807]
[1722365923016,0.98309516,65882.0,65881.0,0.07287273]
[1722365923708,0.98309516,65882.0,65881.0,0.26651735]
[1722365923891,0.67952216,65882.0,65881.0,0.26651735]
[1722365924543,0.98309516,65882.0,65881.0,0.19902376]
[1722365924751,0.98309516,65882.0,65881.0,0.28916132]
[1722365924960,0.98309516,65882.0,65881.0,0.31151308]
[1722365925157,0.98309516,65882.0,65881.0,0.19902376]
[1722365926300,0.98309516,65882.0,65881.0,0.19901984]
[1722365926496,0.98309516,65882.0,65881.0,0.3118009]
[1722365927122,0.98309516,65882.0,65881.0,0.28925622]
[1722365927324,0.98309516,65882.0,65881.0,0.07287273]
[1722365927534,0.98309516,65882.0,65881.0,0.19902444]
[1722365927871,0.98309516,65882.0,65881.0,0.26671061]
[1722365928312,1.28666816,65882.0,65881.0,0.20590361]
[1722365928488,1.28666816,65882.0,65881.0,0.13821744]
[1722365928688,1.28666816,65882.0,65881.0,0.01206573]
[1722365928922,1.28666816,65882.0,65881.0,0.006]
[1722365930452,0.98309516,65882.0,65881.0,0.006]
[1722365930635,0.98309516,65882.0,65881.0,0.13216266]
[1722365930850,0.907748,65882.0,65881.0,0.12616266]
[1722365931060,0.604175,65882.0,65881.0,0.17735965]
[1722365931240,0.610175,65882.0,65881.0,0.20091456]
[1722365931459,0.913748,65882.0,65881.0,0.19991456]
[1722365931678,0.913748,65882.0,65881.0,0.13222839]
[1722365931873,0.919748,65882.0,65881.0,0.13222839]
[1722365932582,0.919748,65882.0,65881.0,0.17742106]
[1722365932786,0.919748,65882.0,65881.0,0.13221071]
[1722365932984,0.604175,65882.0,65881.0,0.17134213]
[1722365933195,0.604175,65882.0,65881.0,0.20040786]
[1722365934293,0.161202,65882.0,65881.0,0.20040786]
[1722365934502,0.464775,65882.0,65881.0,0.20040786]